fUST/lending_fUST_20241110
["ID","MTS","AMOUNT","RATE_DAILY","PERIOD"]
[341796081,1731234649784,-163.482374,0.00030221,2]
[341796082,1731234649794,-610.651476,0.0003023,7]
[341796083,1731234649803,-610.651476,0.0003023,7]
[341796084,1731234649812,-644.43259706,0.00030239,2]
[341796085,1731234649822,-312.868626,0.000303,2]
[341796086,1731234649831,-312.868626,0.000303,2]
[341796087,1731234649840,-1379.59,0.000303,14]
[341796088,1731234649849,-6538.88,0.000303,30]
[341796089,1731234649858,-150.112233,0.000303,14]
[341796090,1731234649867,-243.710172,0.000303,7]
[341796091,1731234649876,-243.710172,0.000303,7]
[341796092,1731234649886,-2124.99319,0.000303,7]
[341796093,1731234649896,-2026.30001129,0.000303,7]
[341796101,1731234825619,162.322307,0.00013973,2]
[341796127,1731235164631,520.83333333,0.00020844,2]
[341796145,1731235477044,520.83333333,0.00020844,2]
[341796150,1731235543235,162.587842,0.00013973,2]
[341796256,1731235748755,10000.0,0.00027,60]
[341796301,1731235788478,520.83333333,0.00020844,2]
[341796310,1731235832420,-162.587842,0.00022759,2]
[341796311,1731235832429,-169.385966,0.00024239,2]
[341796312,1731235832438,-300.0,0.00024658,2]
[341796313,1731235832447,-221.280187,0.00024822,2]
[341796314,1731235832457,-303.11820731,0.00025,2]
[341796315,1731235832466,-520.83333333,0.00025,2]
[341796316,1731235832475,-303.11820731,0.0002525,2]
[341796317,1731235832484,-303.11820731,0.000255,2]
[341796318,1731235832493,-221.280187,0.00025507,2]
[341796319,1731235832502,-300.0,0.00025572,2]
[341796320,1731235832511,-300.0,0.00025572,2]
[341796321,1731235832520,-24900.0,0.00025573,2]
[341796322,1731235832529,-243.8239453,0.00025634,2]
[341796323,1731235832539,-315.955115,0.00025711,2]
[341796324,1731235832548,-303.11820731,0.0002575,2]
[341796325,1731235832557,-303.11820731,0.00026,2]
[341796326,1731235832566,-221.280187,0.00026192,2]
[341796327,1731235832575,-454.67731097,0.0002625,4]
[341796328,1731235832584,-1393.2255805,0.00026331,2]
[341796329,1731235832593,-646.2371057,0.00026384,2]
[341796330,1731235832602,-454.67731097,0.000265,4]
[341796331,1731235832611,-454.67731097,0.0002675,4]
[341796332,1731235832620,-454.67731097,0.00027,4]
[341796333,1731235832629,-454.67731099,0.0002725,4]
[341796334,1731235832638,-849.00369486,0.00027587,2]
[341796335,1731235832646,-420.0,0.00027687,2]
[341796336,1731235832655,-2500.0,0.00028,4]
[341796337,1731235832664,-171.821,0.00028088,18]
[341796338,1731235832674,-420.0,0.00028129,2]
[341796339,1731235832683,-849.00369485,0.00028158,2]
[341796340,1731235832692,-160.0,0.00028604,3]
[341796341,1731235832701,-849.00369485,0.0002873,2]
[341796342,1731235832711,-153.0,0.00028767,30]
[341796343,1731235832720,-153.0,0.00028767,30]
[341796344,1731235832729,-431.39298047,0.00028767,2]
[341796345,1731235832739,-153.0,0.00029141,30]
[341796346,1731235832747,-153.0,0.00029241,30]
[341796347,1731235832756,-849.00369485,0.00029301,2]
[341796348,1731235832765,-60.26020313,0.000294,7]
[341796392,1731235838292,-103.45979687,0.000294,7]
[341796393,1731235838302,-154.13,0.000294,7]
[341796394,1731235838313,-500.0,0.00029473,5]
[341796395,1731235838326,-500.22282478,0.00029473,5]
[341796396,1731235838338,-500.0,0.00029473,5]
[341796397,1731235838349,-500.0,0.00029473,5]
[341796398,1731235838360,-504.76646644,0.00029473,5]
[341796399,1731235838371,-303.53302465,0.00029473,5]
[341796400,1731235838381,-500.0,0.00029473,2]
[341796401,1731235838392,-500.0,0.00029473,5]
[341796402,1731235838403,-500.0,0.00029473,5]
[341796403,1731235838414,-12605.05137104,0.0002949,10]
[341796404,1731235838427,-1078.56412,0.0002949,10]
[341796405,1731235838448,-334.95692506,0.0002949,10]
[341796406,1731235838466,-1091.3775839,0.0002949,10]
[341796407,1731235838479,-399.52165085,0.00029499,2]
[341796408,1731235838490,-500.0,0.00029499,2]
[341796410,1731235838500,-500.0,0.00029499,2]
[341796412,1731235838516,-371.55315813,0.00029499,2]
[341796413,1731235838527,-259.02367772,0.00029499,2]
[341796414,1731235838540,-306.07903957,0.00029499,2]
[341796415,1731235838551,-410.42554526,0.00029499,2]
[341796416,1731235838562,-500.0,0.00029499,2]
[341796417,1731235838573,-500.0,0.00029499,2]
[341796419,1731235838585,-500.0,0.00029499,2]
[341796420,1731235838596,-389.51683881,0.00029499,2]
[341796421,1731235838606,-239.31416639,0.00029499,2]
[341796422,1731235838617,-500.0,0.00029499,2]
[341796423,1731235838627,-467.18016243,0.00029499,2]
[341796424,1731235838638,-500.0,0.00029499,2]
[341796425,1731235838648,-500.0,0.00029499,2]
[341796426,1731235838659,-500.00000001,0.00029499,2]
[341796427,1731235838670,-508.59539179,0.00029499,2]
[341796428,1731235838680,-500.0,0.00029499,2]
[341796429,1731235838691,-216.60101784,0.00029499,2]
[341796430,1731235838704,-283.39898216,0.00029499,2]
[341796431,1731235838714,-500.0,0.00029499,2]
[341796432,1731235838725,-500.0,0.00029499,2]
[341796433,1731235838735,-388.38482481,0.00029499,2]
[341796434,1731235838746,-500.0,0.00029499,2]
[341796435,1731235838756,-563.93310605,0.00029499,2]
[341796436,1731235838767,-500.0,0.00029499,2]
[341796437,1731235838777,-500.0,0.00029499,2]
[341796438,1731235838787,-191.00461789,0.00029499,2]
[341796439,1731235838807,-281.05910888,0.00029499,2]
[341796444,1731235840061,-27.93627323,0.00029499,2]
[341796445,1731235840072,-453.91160174,0.00029499,2]
[341796446,1731235840122,-46.08839826,0.00029499,2]
[341796447,1731235840133,-168.13794262,0.00029499,2]
[341796448,1731235840143,-500.0,0.00029499,2]
[341796449,1731235840154,-349.49362102,0.00029499,2]
[341796450,1731235840164,-500.0,0.00029499,2]
[341796451,1731235840174,-500.0,0.00029499,2]
[341796452,1731235840184,-192.9556807,0.00029499,2]
[341796453,1731235840196,-307.0443193,0.00029499,2]
[341796454,1731235840206,-435.00324916,0.00029499,2]
[341796455,1731235840218,-500.0,0.00029499,2]
[341796456,1731235840228,-500.0,0.00029499,2]
[341796457,1731235840237,-425.70507448,0.00029499,2]
[341796463,1731235843604,-196.737183,0.00028193,2]
[341796464,1731235843614,-74.29492552,0.00029499,2]
[341796465,1731235843623,-500.0,0.00029499,2]
[341796466,1731235843632,-481.11799619,0.00029499,2]
[341796655,1731235846151,-18.88200381,0.00029499,2]
[341796657,1731235846161,-500.0,0.00029499,2]
[341796659,1731235846170,-500.0,0.00029499,2]
[341796663,1731235846192,-500.0,0.00029499,2]
[341796665,1731235846210,-500.0,0.00029499,2]
[341796668,1731235846230,-500.0,0.00029499,2]
[341796671,1731235846250,-80.49728684,0.00029499,2]
[341796775,1731235847305,-419.50271316,0.00029499,2]
[341796778,1731235847323,-555.11317543,0.00029499,2]
[341796780,1731235847337,-500.0,0.00029499,2]
[341796783,1731235847354,-500.0,0.00029499,2]
[341796786,1731235847367,-500.0,0.00029499,2]
[341796788,1731235847382,-500.0,0.00029499,2]
[341796791,1731235847396,-500.0,0.00029499,2]
[341796793,1731235847411,-500.0,0.00029499,2]
[341796796,1731235847425,-500.0,0.00029499,2]
[341796798,1731235847439,-500.0,0.00029499,2]
[341796801,1731235847454,-500.0,0.00029499,2]
[341796803,1731235847470,-500.0,0.00029499,2]
[341796806,1731235847483,-500.0,0.00029499,2]
[341796808,1731235847498,-500.0,0.00029499,2]
[341796811,1731235847512,-611.84934936,0.00029499,2]
[341796813,1731235847526,-500.0,0.00029499,2]
[341796816,1731235847541,-263.0742879,0.000295,2]
[341796818,1731235847555,-171.55703053,0.000295,2]
[341796820,1731235847569,-50000.0,0.000295,15]
[341796823,1731235847583,-227780.01026098,0.000295,15]
[341796826,1731235847601,-331782.97282117,0.000295,15]
[341796828,1731235847618,-12936.52552709,0.000295,15]
[341802095,1731236164803,520.83333333,0.00020844,2]
[341802096,1731236248211,162.768745,0.00013973,2]
[341802121,1731236479213,520.83333333,0.00020844,2]
[341802129,1731236532296,-3949.14719541,0.00021698,2]
[341802130,1731236532317,-3004.85463757,0.00021917,2]
[341802131,1731236532338,-165.93675,0.00022138,2]
[341802132,1731236532360,-168.29625,0.00022163,2]
[341802133,1731236532382,-162.768745,0.00022759,2]
[341802134,1731236532403,-547.0,0.00023245,2]
[341802135,1731236532425,-179.579471,0.00024193,2]
[341802136,1731236532445,-166.666666,0.00024537,2]
[341802137,1731236532466,-547.0,0.0002557,4]
[341802138,1731236532487,-300.0,0.00026574,2]
[341802139,1731236532509,-300.0,0.00026574,2]
[341802140,1731236532529,-210.0867675,0.00027739,2]
[341802141,1731236532551,-24900.0,0.00027749,2]
[341802142,1731236532571,-166.666666,0.00027882,2]
[341802143,1731236532591,-153.86,0.0002795,120]
[341802144,1731236532612,-171.82271499,0.0002795,18]
[341802145,1731236532633,-473.932672,0.00027985,2]
[341802146,1731236532655,-520.83333333,0.00027985,2]
[341802150,1731236703234,650.0,0.00020843,2]
[341802151,1731236704952,1386.0,0.0002,2]
[341802156,1731236858768,520.83333333,0.00020844,2]
[341802653,1731237035238,-378.83497097,0.00025,2]
[341802654,1731237035248,-520.83333333,0.0002526,2]
[341802655,1731237035257,-250.0,0.0002754,2]
[341802656,1731237035266,-615.773569,0.00027608,2]
[341802657,1731237035276,-300.0,0.00027886,2]
[341802658,1731237035285,-300.0,0.00027886,2]
[341802659,1731237035294,-3000.0,0.00027887,2]
[341802660,1731237035303,-4.18009851,0.00027887,2]
[341802662,1731237035314,-576.59658889,0.00027887,2]
[341802664,1731237035324,-8.93629111,0.00027977,2]
[341802666,1731237035335,-336.34887966,0.00027977,2]
[341802668,1731237035350,-53.97896123,0.00027977,2]
[341802670,1731237035360,-547.0,0.00028127,7]
[341802672,1731237035369,-399.264132,0.00028662,2]
[341802674,1731237035378,-6055.09233097,0.00028936,2]
[341802676,1731237035387,-6055.09233097,0.00029062,2]
[341802678,1731237035396,-308.8627427,0.00029178,30]
[341802679,1731237035408,-363.1351544,0.00029178,30]
[341802680,1731237035418,-303.7049688,0.00029178,30]
[341802681,1731237035427,-303.7049688,0.00029178,30]
[341802682,1731237035436,-303.7049688,0.00029178,30]
[341802683,1731237035447,-399.264132,0.00029347,2]
[341802684,1731237035457,-1007.71311324,0.00029373,2]
[341802685,1731237035466,-752.30401042,0.00029398,2]
[341802686,1731237035476,-1000.0,0.00029398,2]
[341802687,1731237035486,-752.30401039,0.00029399,2]
[341802688,1731237035495,-6982.44860743,0.00029399,2]
[341802689,1731237035505,-752.30401039,0.00029399,2]
[341802690,1731237035514,-752.30401039,0.000294,2]
[341802691,1731237035523,-752.30401039,0.000294,2]
[341802692,1731237035533,-500.0,0.00029473,5]
[341802693,1731237035542,-501.35716138,0.00029473,5]
[341802694,1731237035551,-500.0,0.00029473,5]
[341802695,1731237035560,-500.0,0.00029473,5]
[341802696,1731237035569,-506.15118949,0.00029473,5]
[341802697,1731237035579,-500.0,0.00029473,5]
[341802698,1731237035588,-500.0,0.00029473,5]
[341802699,1731237035597,-500.0,0.00029473,5]
[341802700,1731237035606,-500.0,0.00029473,2]
[341802701,1731237035615,-501.12172304,0.00029473,5]
[341802702,1731237035624,-500.0,0.00029473,5]
[341802703,1731237035633,-500.0,0.00029473,5]
[341802704,1731237035642,-384.48572154,0.00029488,2]
[341802705,1731237035651,-12591.63,0.00029489,10]
[341802706,1731237035660,-500.0,0.00029499,2]
[341802707,1731237035669,-500.0,0.00029499,2]
[341802708,1731237035678,-500.0,0.00029499,2]
[341802709,1731237035688,-500.0,0.00029499,2]
[341802710,1731237035700,-399.48845417,0.00029499,2]
[341802711,1731237035710,-156.9970644,0.00029499,2]
[341802712,1731237035719,-160.0,0.00029499,10]
[341802713,1731237035728,-600.0,0.00029499,2]
[341802714,1731237035738,-500.0,0.00029499,2]
[341802715,1731237035747,-529.08490252,0.00029499,2]
[341802716,1731237035756,-500.0,0.00029499,2]
[341802717,1731237035766,-205.49929122,0.00029499,2]
[341802718,1731237035775,-529.08490252,0.00029499,2]
[341802719,1731237035785,-500.0,0.00029499,2]
[341802720,1731237035794,-500.0,0.00029499,2]
[341802721,1731237035803,-529.08490252,0.00029499,2]
[341802722,1731237035814,-334.67532527,0.00029499,2]
[341802723,1731237035823,-500.0,0.00029499,2]
[341802724,1731237035832,-529.08490252,0.00029499,2]
[341802725,1731237035908,-500.0,0.00029499,2]
[341802726,1731237035918,-500.0,0.00029499,2]
[341802727,1731237035928,-529.08490252,0.00029499,2]
[341802728,1731237035937,-500.0,0.00029499,2]
[341802729,1731237035948,-529.08490252,0.00029499,2]
[341802730,1731237035957,-500.0,0.00029499,2]
[341802731,1731237035966,-529.08490252,0.00029499,2]
[341802732,1731237035975,-500.0,0.00029499,2]
[341802733,1731237035984,-500.0,0.00029499,2]
[341802734,1731237035994,-529.08490252,0.00029499,2]
[341802735,1731237036004,-500.0,0.00029499,2]
[341802736,1731237036013,-529.08490252,0.00029499,2]
[341802737,1731237036022,-500.0,0.00029499,2]
[341802738,1731237036032,-500.0,0.00029499,2]
[341802739,1731237036041,-529.08490252,0.00029499,2]
[341802740,1731237036051,-500.0,0.00029499,2]
[341802741,1731237036060,-529.08490252,0.00029499,2]
[341802742,1731237036069,-500.0,0.00029499,2]
[341802743,1731237036078,-500.0,0.00029499,2]
[341802744,1731237036087,-529.08490252,0.00029499,2]
[341802745,1731237036095,-500.0,0.00029499,2]
[341802746,1731237036104,-529.08490252,0.00029499,2]
[341802747,1731237036114,-400.24431607,0.00029499,2]
[341802748,1731237036123,-529.08490252,0.00029499,2]
[341802749,1731237036133,-500.0,0.00029499,2]
[341802750,1731237036143,-500.0,0.00029499,2]
[341802751,1731237036152,-529.08490252,0.00029499,2]
[341802752,1731237036161,-529.08490252,0.00029499,2]
[341802753,1731237036170,-500.0,0.00029499,2]
[341802754,1731237036180,-529.08490252,0.00029499,2]
[341802755,1731237036189,-500.0,0.00029499,2]
[341802756,1731237036201,-500.0,0.00029499,2]
[341802757,1731237036210,-529.08490252,0.00029499,2]
[341802758,1731237036219,-500.0,0.00029499,2]
[341802759,1731237036229,-529.08490252,0.00029499,2]
[341802760,1731237036238,-529.08490252,0.00029499,2]
[341802761,1731237036248,-529.08490252,0.00029499,2]
[341802762,1731237036257,-529.08490252,0.00029499,2]
[341802763,1731237036266,-529.08490252,0.00029499,2]
[341802764,1731237036275,-529.08490252,0.00029499,2]
[341802765,1731237036284,-529.08490252,0.00029499,2]
[341802766,1731237036294,-529.08490252,0.00029499,2]
[341802767,1731237036303,-529.08490252,0.00029499,2]
[341802768,1731237036312,-529.08490252,0.00029499,2]
[341802769,1731237036321,-529.08490252,0.00029499,2]
[341802770,1731237036330,-529.08490252,0.00029499,2]
[341802771,1731237036339,-529.08490252,0.00029499,2]
[341802772,1731237036349,-529.08490252,0.00029499,2]
[341802773,1731237036358,-529.08490252,0.00029499,2]
[341802774,1731237036367,-529.08490252,0.00029499,2]
[341802775,1731237036376,-529.08490252,0.00029499,2]
[341802776,1731237036386,-529.08490252,0.00029499,2]
[341802777,1731237036395,-529.08490252,0.00029499,2]
[341802778,1731237036405,-529.08490252,0.00029499,2]
[341802779,1731237036418,-529.08490252,0.00029499,2]
[341802780,1731237036427,-529.08490252,0.00029499,2]
[341802781,1731237036437,-529.08490252,0.00029499,2]
[341802782,1731237036448,-529.08490252,0.00029499,2]
[341802783,1731237036458,-529.08490252,0.00029499,2]
[341802784,1731237036468,-529.08490252,0.00029499,2]
[341802785,1731237036477,-529.08490252,0.00029499,2]
[341802786,1731237036488,-529.08490252,0.00029499,2]
[341802787,1731237036498,-529.08490252,0.00029499,2]
[341802788,1731237036508,-529.08490252,0.00029499,2]
[341802789,1731237036517,-529.08490252,0.00029499,2]
[341802790,1731237036526,-529.08490252,0.00029499,2]
[341802791,1731237036535,-529.08490252,0.00029499,2]
[341802792,1731237036545,-529.08490252,0.00029499,2]
[341802793,1731237036554,-297.99054585,0.00029499,2]
[341802906,1731237038504,-1612.98512222,0.00029489,10]
[341802972,1731237039175,-3982.4179023,0.00029489,10]
[341802985,1731237039293,-4897.61697548,0.00029489,10]
[341802987,1731237039303,-231.09435667,0.00029499,2]
[341802989,1731237039313,-529.08490252,0.00029499,2]
[341802991,1731237039322,-529.08490252,0.00029499,2]
[341802993,1731237039332,-529.08490252,0.00029499,2]
[341802994,1731237039342,-529.08490252,0.00029499,2]
[341802996,1731237039351,-529.08490252,0.00029499,2]
[341802998,1731237039361,-529.08490252,0.00029499,2]
[341803000,1731237039371,-529.08490252,0.00029499,2]
[341803002,1731237039380,-529.08490252,0.00029499,2]
[341803004,1731237039390,-529.08490252,0.00029499,2]
[341803006,1731237039399,-500.0,0.00029499,2]
[341803008,1731237039408,-500.0,0.00029499,2]
[341803010,1731237039420,-500.0,0.00029499,2]
[341803012,1731237039430,-500.0,0.00029499,2]
[341803014,1731237039439,-500.0,0.00029499,2]
[341803016,1731237039450,-500.0,0.00029499,2]
[341803018,1731237039460,-500.0,0.00029499,2]
[341803020,1731237039469,-500.0,0.00029499,2]
[341803023,1731237039487,-462.16803671,0.00029499,2]
[341803085,1731237040269,-37.83196329,0.00029499,2]
[341803088,1731237040284,-500.0,0.00029499,2]
[341803090,1731237040299,-500.0,0.00029499,2]
[341803093,1731237040313,-500.0,0.00029499,2]
[341803095,1731237040328,-300.64933614,0.00029499,2]
[341803098,1731237040343,-500.0,0.00029499,2]
[341803100,1731237040357,-500.0,0.00029499,2]
[341803103,1731237040372,-500.0,0.00029499,2]
[341803107,1731237040386,-500.0,0.00029499,2]
[341803109,1731237040400,-500.0,0.00029499,2]
[341803112,1731237040416,-244.5650115,0.00029499,2]
[341803114,1731237040431,-5205.91152923,0.00029499,2]
[341803117,1731237040446,-1915.90438096,0.00029499,2]
[341803120,1731237040465,-3290.00714827,0.00029499,2]
[341803122,1731237040479,-5205.91152923,0.00029499,2]
[341803124,1731237040493,-1792.72242253,0.00029499,2]
[341803427,1731237043395,-250.66508362,0.00029499,2]
[341803444,1731237043560,-3162.52402308,0.00029499,2]
[341803446,1731237043570,-5205.91152923,0.00029499,2]
[341803448,1731237043580,-5205.91152923,0.00029499,2]
[341803450,1731237043590,-5205.91152923,0.00029499,2]
[341803452,1731237043599,-3026.18447512,0.00029499,2]
[341803727,1731237046285,-2179.72705411,0.00029499,2]
[341803729,1731237046295,-5205.91152923,0.00029499,2]
[341803731,1731237046305,-5205.91152923,0.00029499,2]
[341803733,1731237046315,-5205.91152923,0.00029499,2]
[341803735,1731237046324,-5205.91152923,0.00029499,2]
[341803737,1731237046334,-5205.91152923,0.00029499,2]
[341803739,1731237046343,-5205.91152923,0.00029499,2]
[341803740,1731237046353,-5205.91152923,0.00029499,2]
[341803742,1731237046362,-5205.91152923,0.00029499,2]
[341803744,1731237046371,-5205.91152923,0.00029499,2]
[341803746,1731237046382,-5205.91152923,0.00029499,2]
[341803747,1731237046392,-5205.91152923,0.00029499,2]
[341803748,1731237046401,-5205.91152923,0.00029499,2]
[341803749,1731237046412,-5205.91152923,0.00029499,2]
[341803750,1731237046423,-5205.91152923,0.00029499,2]
[341803751,1731237046434,-5205.91152923,0.00029499,2]
[341803752,1731237046444,-5205.9115292,0.00029499,2]
[341803753,1731237046455,-5205.9115292,0.00029499,2]
[341803754,1731237046465,-5205.9115292,0.00029499,2]
[341803755,1731237046476,-5205.9115292,0.00029499,2]
[341803756,1731237046486,-5205.9115292,0.00029499,2]
[341803757,1731237046497,-263.07428788,0.000295,2]
[341803758,1731237046508,-171.55703053,0.000295,2]
[341803759,1731237046519,-194313.08473937,0.000295,15]
[341803760,1731237046536,-2091.29669199,0.000295,15]
[341803761,1731237046548,-7962.4995,0.000295,15]
[341806970,1731237080100,190.835198,0.00013973,2]
[341806991,1731237080324,190.835198,0.00020447,2]
[341815792,1731237486573,520.83333333,0.00020844,2]
[341815797,1731237776445,188.159208,0.00013973,2]
[341815798,1731237776648,188.159208,0.00020447,2]
[341815799,1731237798682,3150.41592007,0.00020844,2]
[341815800,1731237799462,520.83333333,0.00020844,2]
[341815822,1731238112495,520.83333333,0.00020844,2]
[341815890,1731238232515,-154.79625,0.0002243,2]
[341815892,1731238232525,-170.753241,0.00023,2]
[341815894,1731238232534,-520.83333333,0.00024717,2]
[341815896,1731238232544,-2531.68880327,0.00025,2]
[341815902,1731238232585,-584.5,0.00025,2]
[341815937,1731238238636,-265.67586468,0.00025,2]
[341815939,1731238238646,-196.737183,0.00025257,2]
[341815942,1731238238655,-197.21499596,0.00025302,2]
[341815944,1731238238665,-245.46701639,0.0002539,2]
[341815946,1731238238676,-62.41976761,0.0002539,2]
[341815948,1731238238686,-300.0,0.00025401,2]
[341815950,1731238238695,-300.0,0.00025401,2]
[341815952,1731238238705,-24900.0,0.00025402,2]
[341815954,1731238238714,-197.21499596,0.00025505,2]
[341815956,1731238238723,-2420.6388807,0.00025605,2]
[341815958,1731238238733,-3849.8146345,0.00025686,2]
[341815968,1731238238826,-693.43108014,0.00025686,2]
[341815971,1731238238840,-4840.56765576,0.00025686,2]
[341815972,1731238238849,-542.54550442,0.00025686,2]
[341815975,1731238238859,-500.0,0.00026499,2]
[341815977,1731238238871,-544.47159067,0.00026499,2]
[341815979,1731238238880,-500.0,0.00026499,2]
[341815980,1731238238889,-304.95166795,0.00026499,2]
[341815983,1731238238899,-477.84992624,0.00026499,2]
[341815994,1731238238992,-188.159208,0.00026921,2]
[341815996,1731238239002,-500.0,0.00027397,2]
[341815998,1731238239011,-500.0,0.00027397,2]
[341816000,1731238239021,-500.0,0.00027397,2]
[341816001,1731238239030,-500.0,0.00027397,2]
[341816003,1731238239039,-500.0,0.00027397,2]
[341816005,1731238239049,-0.45994209,0.00027397,2]
[341816008,1731238239061,-499.54005791,0.00027397,2]
[341816010,1731238239070,-500.0,0.00027397,2]
[341816012,1731238239079,-500.0,0.00027397,2]
[341816014,1731238239088,-500.0,0.00027397,2]
[341816016,1731238239097,-500.0,0.00027397,2]
[341816018,1731238239107,-500.0,0.00027397,2]
[341816020,1731238239116,-500.0,0.00027397,2]
[341816022,1731238239125,-500.0,0.00027397,2]
[341816024,1731238239141,-500.0,0.00027397,2]
[341816026,1731238239161,-500.0,0.00027397,2]
[341816028,1731238239183,-500.0,0.00027397,2]
[341816030,1731238239205,-500.0,0.00027397,2]
[341816032,1731238239227,-500.0,0.00027397,2]
[341816034,1731238239248,-500.0,0.00027397,2]
[341816036,1731238239270,-500.0,0.00027397,2]
[341816038,1731238239293,-500.0,0.00027397,2]
[341816040,1731238239313,-500.0,0.00027397,2]
[341816042,1731238239323,-409.78716774,0.00027397,2]
[341816044,1731238239332,-500.0,0.00027397,2]
[341816046,1731238239341,-500.0,0.00027397,2]
[341816048,1731238239351,-500.0,0.00027397,2]
[341816050,1731238239360,-500.0,0.00027397,2]
[341816052,1731238239370,-500.0,0.00027397,2]
[341816054,1731238239380,-500.0,0.00027397,2]
[341816056,1731238239389,-500.0,0.00027397,2]
[341816058,1731238239399,-500.0,0.00027397,2]
[341816060,1731238239408,-500.0,0.00027397,2]
[341816062,1731238239417,-362.13111425,0.00027397,2]
[341816568,1731238245522,-137.86888575,0.00027397,2]
[341816570,1731238245532,-500.0,0.00027397,2]
[341816572,1731238245541,-346.67694785,0.00027397,2]
[341816698,1731238246740,-520.83333333,0.00025685,2]
[341816700,1731238246750,-153.32305215,0.00027397,2]
[341816702,1731238246761,-500.0,0.00027397,2]
[341816704,1731238246771,-500.0,0.000274,5]
[341816706,1731238246781,-367.3137174,0.000274,5]
[341816708,1731238246791,-500.0,0.000274,5]
[341816710,1731238246804,-500.0,0.000274,5]
[341816712,1731238246814,-500.0,0.000274,5]
[341816714,1731238246824,-500.0,0.000274,2]
[341816716,1731238246835,-500.0,0.000274,5]
[341816718,1731238246844,-10264.8418855,0.000275,2]
[341816720,1731238246854,-2766.73796333,0.000275,30]
[341816722,1731238246863,-420.0,0.00027506,2]
[341816724,1731238246875,-2999.999998,0.00027852,2]
[341816726,1731238246886,-420.0,0.00027941,2]
[341816728,1731238246896,-820.6589972,0.00028314,2]
[341816731,1731238246906,-153.881,0.0002858,2]
[341816733,1731238246917,-306.01998121,0.00028767,2]
[341816735,1731238246927,-1000.0,0.0002877,5]
[341816737,1731238246938,-1000.0,0.0002877,5]
[341816738,1731238246948,-1000.0,0.0002877,5]
[341816740,1731238246958,-1000.0,0.0002877,2]
[341816743,1731238246968,-1000.0,0.0002877,5]
[341816745,1731238246979,-1000.0,0.0002877,5]
[341816747,1731238246989,-400.0,0.00029,2]
[341816749,1731238246999,-153.86,0.0002922,30]
[341816751,1731238247008,-176.61009319,0.000293,2]
[341816753,1731238247018,-153.797,0.0002938,2]
[341816755,1731238247028,-8744.19,0.0002939,10]
[341816757,1731238247038,-160.0,0.00029391,3]
[341816759,1731238247048,-30000.0,0.000294,2]
[341816761,1731238247057,-30000.0,0.000294,3]
[341816763,1731238247067,-30000.0,0.000294,4]
[341816765,1731238247077,-30000.0,0.000294,2]
[341816767,1731238247086,-24000.0,0.000294,3]
[341816769,1731238247095,-4879.68888415,0.000294,4]
[341816771,1731238247104,-1000.0,0.000294,2]
[341816773,1731238247113,-500.0,0.00029473,5]
[341816775,1731238247122,-500.0,0.00029473,5]
[341816777,1731238247132,-500.0,0.00029473,5]
[341816779,1731238247141,-500.0,0.00029473,5]
[341816781,1731238247150,-500.0,0.00029499,2]
[341816783,1731238247160,-500.0,0.00029499,2]
[341816785,1731238247170,-500.0,0.00029499,2]
[341816787,1731238247180,-650.0,0.00029499,2]
[341816788,1731238247191,-500.0,0.00029499,2]
[341816791,1731238247202,-500.0,0.00029499,2]
[341816793,1731238247212,-500.0,0.00029499,2]
[341816795,1731238247221,-610.21988446,0.00029499,2]
[341816797,1731238247231,-500.0,0.00029499,2]
[341816806,1731238247312,-500.0,0.00029499,2]
[341816808,1731238247325,-500.0,0.00029499,2]
[341816810,1731238247335,-500.0,0.00029499,2]
[341816812,1731238247345,-600.0,0.00029499,2]